bitfinex/quotes_ETHUSD_20250324
["timestamp","ask_amount","ask_price","bid_price","bid_amount"]
[1742843667238,4.86497187,2095.4,2095.1,30.918466]
[1742843667952,0.09261187,2095.4,2095.1,35.691496]
[1742843668135,4.86499187,2095.4,2095.1,30.918466]
[1742843668644,0.09261187,2095.4,2095.1,35.691476]
[1742843670533,0.09261187,2095.4,2095.3,0.8135]
[1742843670851,4.77176,2095.7,2095.3,0.8135]
[1742843671027,0.09434721,2095.4,2095.3,0.8135]
[1742843671232,9.54415,2095.6,2095.3,0.8135]
[1742843671419,0.09434721,2095.4,2095.3,0.8135]
[1742843671622,9.54415,2095.6,2095.3,0.8135]
[1742843671841,0.09434721,2095.4,2095.3,0.8135]
[1742843672042,4.77167,2095.7,2095.3,5.5859]
[1742843672245,0.09255861,2095.4,2095.3,5.5859]
[1742843672446,4.77167,2095.7,2095.3,5.5859]
[1742843672724,6.702513,2095.7,2095.3,5.5859]
[1742843672923,0.09339892,2095.6,2095.3,5.5859]
[1742843673945,0.09339892,2095.6,2095.3,10.3583]
[1742843674149,0.09339892,2095.6,2095.3,5.5859]
[1742843674861,0.09339892,2095.6,2095.3,10.35838]
[1742843675062,0.09339892,2095.6,2095.3,5.5859]
[1742843675631,0.09339892,2095.6,2095.4,4.77219]
[1742843676048,4.7717,2095.7,2095.3,5.58603]
[1742843676269,0.09368208,2095.5,2095.3,10.35847]
[1742843676465,4.7717,2095.7,2095.3,14.384117]
[1742843676667,0.011,2103.1,2095.3,14.384117]
[1742843676668,0.03640677,2095.4,2095.3,10.35847]
[1742843676964,10.78008,2096.4,2095.9,10.33485]
[1742843677265,10.78008,2096.4,2096.0,4.667]
[1742843678257,3.62904156,2096.7,2096.2,0.7784]
[1742843678432,6.7799,2097.1,2096.5,4.76985]
[1742843678635,6.01,2097.1,2096.8,5.54741]
[1742843678858,6.01,2097.1,2096.8,5.54755]
[1742843679058,6.01,2097.1,2096.9,4.76891]
[1742843679268,6.01,2097.1,2096.9,4.76876]
[1742843681564,6.01,2097.1,2096.8,5.54749]
[1742843681852,4.76827,2097.2,2096.8,5.54749]
[1742843682965,16.31629,2097.3,2096.9,4.76892]
[1742843683270,11.54806,2097.3,2096.9,4.76892]
[1742843683475,4.76834,2097.2,2096.8,7.045907]
[1742843684637,4.76827,2097.2,2096.9,4.76883]
[1742843686180,4.76849,2097.1,2096.8,1.498387]
[1742843686363,4.76849,2097.1,2096.7,4.76925]
[1742843686566,4.7686,2097.1,2096.7,4.76925]
[1742843686748,4.76877,2097.0,2096.7,4.76925]
[1742843687271,4.7686,2097.1,2096.7,4.76925]
[1742843687771,9.53726,2097.1,2096.7,4.76925]
[1742843687974,4.7686,2097.1,2096.7,6.267694]
[1742843688149,9.53725,2097.1,2096.7,6.267694]
[1742843688352,4.76873,2097.0,2096.7,6.267694]
[1742843688551,9.53731,2097.1,2096.7,6.267694]
[1742843688752,9.53731,2097.1,2096.7,31.480694]
[1742843689074,4.76874,2097.0,2096.7,31.480694]
[1742843689443,11.54795,2097.3,2096.7,26.711444]
[1742843689648,4.76874,2097.0,2096.7,26.711444]
[1742843689972,9.53763,2097.0,2096.7,26.711444]
[1742843690154,4.76874,2097.0,2096.7,26.711444]
[1742843690679,4.76905,2096.9,2096.7,25.213]
[1742843690978,4.76917,2096.8,2096.7,25.213]
[1742843691163,4.76917,2096.8,2096.7,29.877]
[1742843694458,4.76917,2096.8,2096.7,29.876]
[1742843694780,15.11017,2096.8,2096.7,25.213]
[1742843694951,17.61035476,2096.8,2096.7,25.213]
[1742843703276,4.76962,2096.6,2096.5,4.663]
[1742843714388,4.76948,2096.7,2096.5,4.663]
[1742843714909,4.76962,2096.6,2096.5,4.663]
[1742843715076,6.01,2096.8,2096.7,4.76939]
[1742843715285,6.01,2096.8,2096.7,6.567769]
[1742843715615,6.01,2096.8,2096.7,1.798379]
[1742843720495,4.76943,2096.7,2096.5,0.7563]
[1742843720805,4.76962,2096.6,2096.5,0.7563]
[1742843720975,4.76962,2096.6,2096.5,5.4183]
[1742843721376,4.7692,2096.8,2096.5,5.4183]
[1742843721608,9.53806,2096.9,2096.5,10.18803]
[1742843721835,4.76896,2096.9,2096.6,1.495807]
[1742843722179,7.76854,2097.1,2096.7,0.7675]
[1742843722378,4.76885,2097.0,2096.7,0.7675]
[1742843722778,7.76851,2097.1,2096.7,0.7675]
[1742843722980,4.76851,2097.1,2096.8,0.7879]
[1742843723176,0.01,2097.4,2097.0,0.7879]
[1742843723410,4.77792,2097.4,2097.1,4.661]
[1742843723614,7.76811,2097.3,2097.1,4.661]
[1742843724311,12.53629,2097.3,2097.1,4.661]
[1742843724698,7.76811,2097.3,2097.1,4.661]
[1742843724905,12.53629,2097.3,2097.1,4.661]
[1742843725281,4.76826,2097.2,2097.1,4.661]
[1742843726019,4.76826,2097.2,2097.0,26.0009]
[1742843726020,4.76848,2097.1,2097.0,25.213]
[1742843726186,4.76848,2097.1,2097.0,29.874]
[1742843728715,7.76848,2097.1,2097.0,25.213]
[1742843728896,9.580549,2097.1,2097.0,29.873]
[1742843730414,9.580549,2097.1,2097.0,25.213]
[1742843730620,9.580549,2097.1,2097.0,29.873]
[1742843733416,9.580549,2097.1,2097.0,4.66]
[1742843737132,4.76925,2096.8,2096.4,25.9836]
[1742843737294,4.76985,2096.5,2096.4,25.21]
[1742843737494,4.76985,2096.5,2096.4,29.87]
[1742843740228,5.31985,2096.5,2096.4,25.21]
[1742843740430,15.9338939,2096.5,2096.4,25.21]
[1742843742515,6.01,2097.0,2096.4,25.9648]
[1742843742717,4.76879,2097.0,2096.6,5.52427]
[1742843742924,6.01,2097.1,2096.7,4.66]
[1742843743099,7.76871,2097.0,2096.8,1.018427]
[1742843743302,4.76894,2096.9,2096.8,1.018427]
[1742843745356,4.76894,2096.9,2096.4,29.97993]
[1742843745357,4.76985,2096.5,2096.4,25.21]
[1742843745641,7.76985,2096.5,2096.4,29.87]
[1742843745932,8.31985,2096.5,2096.4,29.87]
[1742843746136,14.32985,2096.5,2096.4,29.87]
[1742843747427,13.77985,2096.5,2096.1,0.563624]
[1742843747614,10.77986,2096.5,2096.1,5.334304]
[1742843747821,10.77989,2096.5,2096.2,1.0105274]
[1742843748608,10.77989,2096.5,2096.3,4.66]
[1742843749810,4.76989,2096.5,2096.3,4.66]
[1742843750007,4.77008,2096.4,2096.3,4.66]
[1742843750734,4.76989,2096.5,2096.3,4.66]
[1742843752412,4.77008,2096.4,2096.3,4.66]
[1742843753342,4.76989,2096.5,2096.3,4.66]
[1742843754012,9.54088,2096.3,2096.1,0.563624]
[1742843754217,9.54088,2096.3,2096.2,4.659]
[1742843754413,4.77041,2096.3,2096.2,4.659]
[1742843755245,4.77008,2096.4,2096.2,4.659]
[1742843756242,9.54036,2096.4,2096.2,4.659]
[1742843756447,4.7703,2096.3,2096.2,4.659]
[1742843757010,4.77008,2096.4,2096.2,4.659]
[1742843757209,3.0,2096.5,2096.2,4.659]
[1742843757439,7.77,2096.5,2096.2,5.6583344]
[1742843757741,3.0,2096.5,2096.2,10.4287744]
[1742843758247,10.77978,2096.6,2096.2,15.1991044]
[1742843758543,10.77978,2096.6,2096.3,5.5205]
[1742843758931,10.77978,2096.6,2096.3,0.7502]
[1742843759438,6.01,2096.6,2096.3,6.64310656]
[1742843759814,6.01,2096.6,2096.4,5.52027]
[1742843760014,10.77905,2096.9,2096.5,4.76985]
[1742843760214,4.76905,2096.9,2096.6,5.51982]
[1742843760457,6.02,2097.4,2096.8,0.7502]
[1742843760458,9.53685,2097.2,2096.8,0.7502]
[1742843760612,4.76872,2097.0,2096.8,0.7502]
[1742843762037,3.0,2097.0,2096.8,0.7502]
[1742843765319,3.0,2097.0,2096.8,5.51935]
[1742843765636,4.76856,2097.1,2096.8,0.7502]
[1742843767422,4.76874,2097.0,2096.8,0.7502]
[1742843768233,4.76856,2097.1,2096.8,0.7502]
[1742843768647,4.76872,2097.0,2096.8,0.7502]
[1742843769960,4.76856,2097.1,2096.8,0.7502]
[1742843770251,7.76832,2097.2,2096.8,5.51937]
[1742843770454,12.53675,2097.2,2096.8,5.51937]
[1742843770768,4.7685,2097.1,2096.8,5.51937]
[1742843771557,7.76832,2097.2,2096.8,5.51927]
[1742843771734,4.7685,2097.1,2096.8,5.51927]
[1742843773534,9.53717,2097.1,2096.8,0.7502]
[1742843774157,4.7685,2097.1,2096.8,0.7502]
[1742843774362,4.7685,2097.1,2096.8,5.51932]
[1742843775221,4.76854,2097.1,2096.8,5.51932]
[1742843775661,4.76854,2097.1,2096.8,0.7502]
[1742843775858,4.76854,2097.1,2096.8,5.51936]
[1742843777459,9.53719,2097.1,2096.8,0.7502]
[1742843777642,11.391909,2097.1,2096.8,0.7502]
[1742843777849,6.623259,2097.1,2096.8,0.7502]
[1742843778266,11.391959,2097.1,2096.8,0.7502]
[1742843780558,6.623259,2097.1,2096.8,0.7502]
[1742843780740,11.391899,2097.1,2096.8,0.7502]
[1742843781240,6.623259,2097.1,2096.8,0.7502]
[1742843781662,11.391909,2097.1,2096.8,0.7502]
[1742843782864,4.76872,2097.0,2096.8,0.7502]
[1742843783569,6.2079179,2097.0,2096.7,4.76927]
[1742843783732,6.2079179,2097.0,2096.6,26.0364]
[1742843783733,7.7693,2096.8,2096.6,25.214]
[1742843783932,5.55037,2096.9,2096.6,29.87]
[1742843784132,3.0,2096.8,2096.6,29.87]
[1742843784462,12.53854,2096.8,2096.6,29.87]
[1742843784634,4.76939,2096.7,2096.6,29.87]
[1742843785747,7.76921,2096.8,2096.6,29.87]
[1742843787780,4.76939,2096.7,2096.6,29.87]
[1742843787980,5.56469,2096.7,2096.6,29.87]
[1742843788288,8.56469,2096.7,2096.6,29.87]
[1742843789482,3.0,2096.7,2096.6,29.87]
[1742843790078,7.76939,2096.7,2096.6,29.87]
[1742843790281,3.0,2096.7,2096.6,29.87]
[1742843790844,0.7733,2096.9,2096.6,34.63955]
[1742843791078,6.01,2097.0,2096.8,4.76898]
[1742843791581,6.01,2097.0,2096.9,4.76894]
[1742843793400,0.8422,2097.4,2097.1,4.76837]
[1742843793688,4.76803,2097.3,2097.2,4.656]
[1742843793869,7.76803,2097.3,2097.2,4.656]
[1742843794076,9.706843,2097.3,2097.2,4.656]
[1742843798558,4.76895,2096.9,2096.7,0.8003]
[1742843798767,4.76895,2096.9,2096.8,4.655]
[1742843798959,4.76927,2096.8,2096.6,25.214]
[1742843799260,4.76927,2096.8,2096.7,4.655]
[1742843799445,4.76906,2096.9,2096.7,4.655]
[1742843799647,5.798169,2096.9,2096.7,4.655]
[1742843799843,4.76906,2096.9,2096.7,4.655]
[1742843801779,4.76906,2096.9,2096.8,4.655]
[1742843802075,7.76875,2097.0,2096.8,4.655]
[1742843802648,13.77875,2097.0,2096.8,4.655]
[1742843803783,18.54767,2097.0,2096.8,4.655]
[1742843804080,4.76894,2096.9,2096.8,4.655]
[1742843804282,15.708847,2097.0,2096.8,4.655]
[1742843804485,10.940097,2097.0,2096.8,4.655]
[1742843804691,15.708887,2097.0,2096.8,4.655]
[1742843806377,13.77879,2097.0,2096.8,4.655]
[1742843807886,4.76894,2096.9,2096.8,4.655]
[1742843808889,4.76878,2097.0,2096.8,4.655]
[1742843809111,9.53766,2097.0,2096.8,4.655]
[1742843810091,4.76894,2096.9,2096.8,4.655]
[1742843810660,5.52183,2097.1,2096.8,4.655]
[1742843810855,3.0,2097.0,2096.8,4.655]
[1742843811304,7.76875,2097.0,2096.8,4.655]
[1742843813493,3.0,2097.0,2096.8,4.655]
[1742843813697,6.01,2097.2,2096.8,6.826781]
[1742843813859,6.01,2097.2,2097.0,4.76858]
[1742843814063,4.76809,2097.3,2097.0,4.76858]
[1742843814495,4.76809,2097.3,2096.9,4.76886]
[1742843814798,4.76837,2097.2,2096.8,11.595901]
[1742843815185,4.76837,2097.2,2096.8,16.364941]
[1742843815363,4.76837,2097.2,2096.9,6.4053541]
[1742843817002,7.76809,2097.3,2096.9,11.1741741]
[1742843817668,7.76809,2097.3,2096.9,6.4053141]
[1742843818271,7.76809,2097.3,2096.9,6.4052841]
[1742843819906,3.0,2097.3,2097.0,4.76852]
[1742843820200,3.0,2097.3,2097.1,0.64050141]
[1742843820402,7.76808,2097.3,2097.1,1.46260141]
[1742843821196,7.76808,2097.3,2097.1,0.64050141]
[1742843821367,7.77786,2097.4,2097.1,0.64050141]
[1742843821571,7.77786,2097.4,2097.0,4.76863]
[1742843821572,4.76805,2097.3,2097.0,4.76863]
[1742843822399,4.76873,2097.0,2096.8,25.21]
[1742843822697,4.76873,2097.0,2096.9,4.653]
[1742843823813,7.76894,2096.9,2096.8,25.21]
[1742843824120,7.76894,2096.9,2096.8,29.863]
[1742843826939,4.76854,2097.1,2096.8,29.863]
[1742843827082,6.01,2097.2,2096.9,4.76892]
[1742843827915,10.77826,2097.2,2096.9,4.76892]
[1742843828914,4.76826,2097.2,2096.9,4.76892]
[1742843830093,4.76865,2097.1,2096.8,28.9787]
[1742843830296,4.76865,2097.1,2097.0,4.653]
[1742843830597,7.76865,2097.1,2097.0,4.653]
[1742843842539,4.76933,2096.8,2096.5,25.9799]
[1742843842838,4.76933,2096.8,2096.6,4.652]
[1742843843404,4.76928,2096.8,2096.6,4.652]
[1742843845140,9.53866,2096.8,2096.6,4.652]
[1742843845312,4.76962,2096.6,2096.5,25.209]
[1742843845663,4.77076,2096.1,2096.0,0.8311]
[1742843846158,4.77076,2096.1,2096.0,5.4821]
[1742843848346,7.77057,2096.2,2096.0,5.4821]
[1742843848647,4.77076,2096.1,2096.0,5.4821]
[1742843857154,4.77076,2096.1,2096.0,4.651]
[1742843865031,4.77055,2096.2,2096.0,4.651]
[1742843865228,9.54125,2096.2,2096.0,4.651]
[1742843865533,4.77076,2096.1,2096.0,4.651]
[1742843866267,4.77055,2096.2,2096.0,4.651]
[1742843866559,4.77076,2096.1,2096.0,4.651]
[1742843866765,4.77055,2096.2,2096.0,4.651]
[1742843867449,6.01,2096.4,2096.3,4.7703]
[1742843867761,5.56175,2096.9,2096.3,0.8103]
[1742843867949,9.53855,2096.8,2096.4,4.76993]
[1742843868151,4.76948,2096.7,2096.5,4.651]
[1742843880389,4.76922,2096.8,2096.5,4.651]
[1742843880539,9.53855,2096.8,2096.6,0.8214]
[1742843880972,4.76945,2096.7,2096.5,4.651]
[1742843881996,4.76922,2096.8,2096.5,4.651]
[1742843882201,5.55766,2097.1,2096.5,4.651]
[1742843882476,4.76902,2096.9,2096.6,0.7839]
[1742843882782,4.76902,2096.9,2096.6,6.573903]
[1742843883298,9.53814,2096.9,2096.6,1.804363]
[1742843883597,4.76918,2096.8,2096.6,1.804363]
[1742843883774,4.76918,2096.8,2096.6,0.7839]
[1742843884877,0.7688,2096.5,2095.9,0.97748059]
[1742843885087,0.8069,2096.3,2095.7,4.648]
[1742843885265,3.0,2096.2,2095.9,0.8122]
[1742843885471,7.77076,2096.2,2095.9,0.8122]
[1742843885688,4.77087,2096.1,2095.9,0.8122]
[1742843886196,4.7711,2096.0,2095.8,4.648]
[1742843886400,4.77119,2096.0,2095.8,4.648]
[1742843887498,4.77122,2095.9,2095.8,4.648]
[1742843888066,4.77185,2095.7,2095.5,0.7733]
[1742843888278,4.77185,2095.7,2095.6,4.648]
[1742843888815,4.7719,2095.6,2095.5,0.7733]
[1742843888980,4.7719,2095.6,2095.5,5.4213]
[1742843889666,4.77129,2095.9,2095.5,10.19334]
[1742843889885,4.77155,2095.8,2095.5,5.4213]
[1742843890089,4.77179,2095.7,2095.5,5.4213]
[1742843890301,4.7719,2095.6,2095.5,5.4213]
[1742843890827,9.54363,2095.7,2095.5,5.4213]
[1742843890965,4.77179,2095.7,2095.5,5.4213]
[1742843891171,4.7715,2095.8,2095.5,5.4213]
[1742843891415,4.7715,2095.8,2095.5,10.19339]
[1742843891617,4.77127,2095.9,2095.5,10.19326]
[1742843891770,3.0,2096.0,2095.5,6.917859]
[1742843891973,5.95260365,2096.4,2096.0,4.7708]
[1742843892282,4.76963,2096.6,2096.2,4.77039]
[1742843892499,4.76958,2096.7,2096.3,5.55563]
[1742843892700,4.76918,2096.8,2096.3,5.55563]
[1742843892701,9.53848,2096.8,2096.4,4.76998]
[1742843892975,9.53899,2096.7,2096.3,5.55563]
[1742843893175,9.53893,2096.7,2096.3,7.053148]
[1742843893396,4.7694,2096.7,2096.3,7.053148]
[1742843893603,4.76956,2096.7,2096.3,7.053148]
[1742843894716,9.53914,2096.7,2096.3,7.053148]
[1742843895009,4.76956,2096.7,2096.3,7.053148]
[1742843895782,4.76956,2096.7,2096.3,11.823358]
[1742843895982,4.76933,2096.8,2096.4,5.9523258]
[1742843896321,9.53872,2096.8,2096.4,5.9523258]
[1742843896498,4.7695,2096.7,2096.4,1.1823658]
[1742843897483,4.7695,2096.7,2096.3,10.32581]
[1742843898185,4.7695,2096.7,2096.4,4.77008]
[1742843899049,4.7695,2096.7,2096.3,5.55564]
[1742843899329,4.76933,2096.8,2096.4,4.77004]
[1742843901701,4.76933,2096.8,2096.4,4.76992]
[1742843901902,4.76933,2096.8,2096.4,5.325462]
[1742843903085,9.5387,2096.8,2096.4,5.325462]
[1742843903418,4.76933,2096.8,2096.4,5.325462]
[1742843904223,4.76952,2096.7,2096.3,5.55578]
[1742843904418,4.76952,2096.7,2096.5,4.647]
[1742843905421,8.5273,2096.5,2096.4,4.647]
[1742843905917,4.77,2096.5,2096.4,4.647]
[1742843909435,4.7705,2096.3,2095.9,5.53905]
[1742843909601,4.77054,2096.2,2096.0,4.647]
[1742843910120,4.7705,2096.3,2096.0,4.647]
[1742843910994,9.54097,2096.3,2096.0,4.647]
[1742843911322,4.77047,2096.3,2096.0,4.647]
[1742843912640,4.77047,2096.3,2096.0,9.41797]
[1742843913328,7.77018,2096.4,2096.0,9.41788]
[1742843913730,4.77042,2096.3,2096.0,4.647]
[1742843915435,9.54091,2096.3,2096.0,4.647]
[1742843915637,4.77042,2096.3,2096.0,4.647]
[1742843916101,9.54089,2096.3,2096.0,4.647]
[1742843916401,4.77042,2096.3,2096.0,4.647]
[1742843917344,4.77042,2096.3,2096.0,9.41797]
[1742843917634,4.77033,2096.3,2096.0,9.41783]
[1742843917838,4.77009,2096.4,2096.0,18.25387693]
[1742843918037,4.77009,2096.4,2096.0,18.206173]
[1742843918216,4.77009,2096.4,2096.0,13.435323]
[1742843918420,4.77009,2096.4,2096.1,4.77074]
[1742843919241,4.77009,2096.4,2096.0,13.435363]
[1742843919442,4.77033,2096.3,2096.0,9.41787]
[1742843920134,4.77015,2096.4,2096.0,9.41787]
[1742843920339,4.77015,2096.4,2096.0,9.41784]
[1742843920639,4.77033,2096.3,2096.0,9.41784]
[1742843921006,3.8278,2096.2,2095.5,4.77201]
[1742843921299,0.8278,2095.7,2095.2,0.8122]
[1742843921503,6.01,2096.1,2095.2,0.8122]
[1742843921504,3.0,2095.8,2095.2,0.8122]
[1742843921729,4.77179,2095.7,2095.2,5.58487]
[1742843921929,4.77179,2095.7,2095.3,5.331037]
[1742843922530,4.77192,2095.6,2095.3,0.558487]
[1742843922836,9.54355,2095.7,2095.3,0.558487]
[1742843923403,4.77191,2095.6,2095.3,0.558487]
[1742843924453,4.77175,2095.7,2095.3,0.558487]
[1742843924607,4.77194,2095.6,2095.3,5.331047]
[1742843925145,9.54356,2095.7,2095.3,5.331047]
[1742843925350,4.77134,2095.9,2095.4,1.13932212]
[1742843925555,4.77134,2095.9,2095.3,0.558487]
[1742843925556,0.7794,2096.2,2095.5,5.4377]
[1742843925759,0.7794,2096.5,2095.7,4.77149]
[1742843925915,4.7708,2096.1,2095.8,5.56203]
[1742843926555,4.7706,2096.2,2095.8,5.56203]
[1742843926751,4.7706,2096.2,2095.9,4.77121]
[1742843926956,4.7706,2096.2,2096.0,1.033324]
[1742843927254,4.7706,2096.2,2096.1,4.647]
[1742843927432,4.77041,2096.3,2096.1,4.647]
[1742843928207,9.54033,2096.4,2096.1,4.647]
[1742843928411,3.0,2096.5,2096.2,0.7766]
[1742843928752,0.792,2096.7,2096.2,0.7766]
[1742843928753,4.76958,2096.7,2096.2,6.1926024]
[1742843929451,12.53867,2096.8,2096.4,4.77007]
[1742843929605,4.76948,2096.7,2096.3,4.77028]
[1742843929941,4.76997,2096.5,2096.4,4.647]
[1742843930836,4.77014,2096.4,2096.2,0.7766]
[1742843931043,4.7703,2096.3,2096.0,6.9176]
[1742843931359,4.77074,2096.2,2096.1,4.647]
[1742843934140,4.7704,2096.3,2096.1,4.647]
[1742843934659,9.54088,2096.3,2096.1,4.647]
[1742843934829,4.77053,2096.2,2096.1,4.647]
[1742843935026,4.77053,2096.2,2096.1,4.646]
[1742843936661,4.77031,2096.3,2096.1,4.646]
[1742843937648,4.77053,2096.2,2096.1,4.646]
[1742843938714,4.77079,2096.1,2095.8,0.7976]
[1742843938946,4.77103,2096.0,2095.9,4.646]
[1742843940050,4.77157,2095.8,2095.6,0.7855]
[1742843940246,4.77157,2095.8,2095.7,4.646]
[1742843940553,4.77122,2095.9,2095.7,4.646]
[1742843940919,7.77105,2096.0,2095.7,4.646]
[1742843941131,12.54226,2096.0,2095.7,4.646]
[1742843941449,4.77125,2095.9,2095.7,4.646]
[1742843943655,7.77099,2096.0,2095.7,4.646]
[1742843943858,4.77139,2095.9,2095.7,4.646]
[1742843944546,9.54278,2095.9,2095.7,4.646]
[1742843945953,4.77139,2095.9,2095.7,4.646]
[1742843950262,4.77144,2095.8,2095.7,4.646]
[1742843951634,9.54306,2095.8,2095.5,25.221]
[1742843951835,9.54306,2095.8,2095.6,4.646]
[1742843952359,4.77144,2095.8,2095.6,8.190002]
[1742843954165,9.54259,2095.9,2095.6,8.190002]
[1742843955368,4.77149,2095.8,2095.6,8.190002]
[1742843957968,4.77125,2095.9,2095.6,8.190002]
[1742843958167,6.01,2096.2,2096.0,4.77091]
[1742843958466,6.01,2096.2,2096.1,4.646]
[1742843958671,9.54091,2096.3,2096.1,4.646]
[1742843959059,4.77017,2096.4,2096.1,4.646]
[1742843959260,4.76994,2096.5,2096.1,4.646]
[1742843959459,3.0,2096.4,2096.1,9.96924901]
[1742843960267,4.77008,2096.4,2096.1,5.19860901]
[1742843960475,9.54035,2096.4,2096.1,5.19860901]
[1742843960771,4.77032,2096.3,2096.1,5.19860901]
[1742843961342,4.77053,2096.2,2095.8,4.77143]
[1742843961539,4.77076,2096.1,2095.9,4.646]
[1742843961743,4.77053,2096.2,2095.6,0.8092]
[1742843961942,4.77137,2095.9,2095.7,4.646]
[1742843962372,9.5428,2095.9,2095.7,4.646]
[1742843962743,4.77137,2095.9,2095.7,4.646]
[1742843962948,4.77144,2095.8,2095.7,4.646]
[1742843971278,4.77137,2095.9,2095.4,0.8092]
[1742843971279,4.772,2095.6,2095.4,0.8092]
[1742843971485,4.77246,2095.4,2095.2,25.9988]
[1742843971786,4.77246,2095.4,2095.3,4.646]
[1742843973188,4.77246,2095.4,2095.2,25.9988]
[1742843973403,4.77245,2095.4,2095.3,4.646]
[1742843975183,4.77245,2095.4,2095.2,25.222]
[1742843975486,4.77258,2095.3,2095.2,25.222]
[1742843975656,4.77258,2095.3,2095.2,29.868]
[1742843980791,4.77258,2095.3,2095.2,25.222]
[1742843980991,4.77258,2095.3,2095.2,29.868]
[1742843986972,4.77258,2095.3,2095.2,25.222]
[1742843987172,4.77258,2095.3,2095.2,29.868]
[1742843987574,4.77258,2095.3,2095.2,4.646]
[1742843999516,4.77308,2095.1,2094.8,0.8159]
[1742843999827,4.77333,2095.0,2094.9,4.645]
[1742844000397,4.77308,2095.1,2094.9,4.645]
[1742844001097,9.54628,2095.1,2094.9,4.645]
[1742844001299,4.77308,2095.1,2094.9,4.645]
[1742844001808,4.77349,2094.9,2094.8,0.8159]
[1742844002006,4.77349,2094.9,2094.8,5.4609]
[1742844002329,4.77372,2094.8,2094.7,25.229]
[1742844002642,4.77372,2094.8,2094.7,29.874]
[1742844004009,4.77372,2094.8,2094.7,25.229]
[1742844004200,4.77372,2094.8,2094.7,29.874]
[1742844005509,4.77372,2094.8,2094.7,4.645]
[1742844009126,4.77349,2094.9,2094.7,4.645]
[1742844009334,4.77372,2094.8,2094.7,4.645]
[1742844009535,4.77335,2095.0,2094.8,0.8218]
[1742844010227,6.01,2095.1,2094.9,4.77337]
[1742844010407,10.78314,2095.1,2094.8,0.8218]
[1742844010613,4.77349,2094.9,2094.8,0.8218]
[1742844011847,4.77334,2095.0,2094.8,0.8218]
[1742844012141,4.77349,2094.9,2094.8,0.8218]
[1742844014242,4.77349,2094.9,2094.7,5.662913]
[1742844015319,4.77334,2095.0,2094.7,5.662913]
[1742844015520,4.77334,2095.0,2094.8,4.1277813]
[1742844015721,4.77309,2095.1,2094.8,4.17551284]
[1742844015920,9.54634,2095.1,2094.9,0.8327]
[1742844016321,4.77326,2095.0,2094.9,0.8327]
[1742844017128,4.77349,2094.9,2094.8,4.1277813]
[1742844018850,9.54719,2094.9,2094.7,6.495613]
[1742844019052,4.77372,2094.8,2094.6,25.234]
[1742844019247,4.77372,2094.8,2094.7,4.645]
[1742844020852,6.01,2095.3,2094.8,0.822]
[1742844021065,4.77247,2095.4,2095.1,0.822]
[1742844021228,4.7719,2095.6,2095.2,5.203518]
[1742844021431,4.77221,2095.5,2095.2,5.203518]
[1742844021630,4.77238,2095.4,2095.2,5.203518]
[1742844021840,9.54496,2095.4,2095.2,5.203518]
[1742844022154,4.77238,2095.4,2095.2,4.644]
[1742844022358,4.77235,2095.4,2095.3,4.644]
[1742844030797,4.77293,2095.2,2095.0,0.7958]
[1742844031151,4.77293,2095.2,2095.1,4.643]
[1742844031580,4.98605662,2095.2,2095.1,4.643]
[1742844041569,0.21312662,2095.2,2095.1,5.4529]
[1742844041775,10.78214,2095.5,2095.1,10.69024]
[1742844042073,0.21171227,2095.4,2095.1,10.69024]
[1742844042289,0.21171227,2095.4,2095.1,15.46315]
[1742844042492,0.21171227,2095.4,2095.2,1.546315]
[1742844043711,4.98409227,2095.4,2095.2,1.546315]
[1742844045127,0.21171227,2095.4,2095.2,1.546315]
[1742844048207,4.98407227,2095.4,2095.2,1.546315]
[1742844050547,0.21171227,2095.4,2095.2,1.546315]
[1742844050844,0.21171227,2095.4,2095.2,6.319085]
[1742844051739,0.21171227,2095.4,2095.2,1.546315]
[1742844051944,0.21171227,2095.4,2095.1,15.46299]
[1742844052240,0.21171227,2095.4,2095.1,10.69009]
[1742844053607,0.21171227,2095.4,2095.2,4.77274]
[1742844054412,0.21171227,2095.4,2095.3,5.55948]
[1742844054613,3.0,2095.8,2095.4,4.77214]
[1742844054941,0.21376405,2095.7,2095.5,4.77208]
[1742844055148,0.21376405,2095.7,2095.6,5.441]
[1742844055443,9.54216,2096.0,2095.6,10.2128]
[1742844055644,4.77123,2095.9,2095.6,10.2128]
[1742844055814,4.77123,2095.9,2095.6,11.71129]
[1742844056819,9.54265,2095.9,2095.6,6.93949]
[1742844057252,4.77149,2095.8,2095.6,6.13949]
[1742844060153,4.77149,2095.8,2095.6,4.641]
[1742844060721,9.54315,2095.8,2095.6,4.641]
[1742844060961,4.77149,2095.8,2095.6,4.641]
[1742844062423,0.2147141,2095.7,2095.6,4.641]
[1742844062617,4.77149,2095.8,2095.6,4.641]
[1742844062820,0.21552843,2095.7,2095.6,4.641]
[1742844063049,4.77149,2095.8,2095.6,4.641]
[1742844063251,0.21552843,2095.7,2095.6,4.641]
[1742844063418,4.77149,2095.8,2095.6,4.641]
[1742844063622,0.21552843,2095.7,2095.6,4.641]